bitfinex-derivatives/quotes_BNBF0:USTF0_20250424
["timestamp","ask_amount","ask_price","bid_price","bid_amount"]
[1745537039869,1.26885938,602.0,599.47,0.30597245]
[1745537040174,1.26885938,602.0,599.48,0.30597245]
[1745537040374,1.26885938,602.0,599.46,0.30597245]
[1745537040573,0.28983938,601.99,599.46,0.59581183]
[1745537040773,0.28983938,601.99,599.47,0.30597245]
[1745537042376,1.26885938,602.03,599.47,0.30597245]
[1745537042678,0.28983335,601.98,599.48,0.30597245]
[1745537042876,0.28983335,601.98,599.47,0.30597245]
[1745537044677,0.28983335,601.98,599.46,0.28983335]
[1745537044878,0.28983335,601.98,599.48,1.225]
[1745537045379,1.26885938,602.03,599.48,1.225]
[1745537045678,0.28981886,601.97,599.49,0.30594916]
[1745537047080,1.26885938,601.9,599.55,1.06051272]
[1745537047280,1.26885938,601.9,599.56,0.30594916]
[1745537049277,1.26885938,601.9,599.55,1.06051272]
[1745537049476,1.26885938,601.9,599.56,0.30594488]
[1745537050877,1.26885938,601.64,599.66,1.06051272]
[1745537051080,1.26885938,601.64,599.67,0.30594488]
[1745537052579,1.26885938,601.64,599.66,1.06051272]
[1745537052784,0.28984421,601.63,599.67,0.30594352]
[1745537055886,0.28984421,601.63,599.66,1.06051272]
[1745537056086,0.28984421,601.63,599.67,0.30594951]
[1745537057284,0.28984421,601.63,599.62,0.30594951]
[1745537057488,1.26885938,601.78,599.63,0.30594951]
[1745537057788,1.26885938,601.78,599.64,0.30594951]
[1745537058088,1.26885938,601.78,599.65,0.30594951]
[1745537058288,1.26885938,601.78,599.62,0.30594951]
[1745537058488,1.26885938,601.78,599.63,0.30594951]
[1745537058685,0.28983335,601.77,599.62,0.30594951]
[1745537058889,0.28983335,601.77,599.63,0.30594951]
[1745537059091,0.28983335,601.77,599.62,0.30594951]
[1745537059389,0.28983335,601.77,599.63,0.30594951]
[1745537059590,1.26885938,601.67,599.65,1.06051272]
[1745537059787,1.26885938,601.67,599.66,0.30594951]
[1745537060893,1.26885938,601.67,599.65,1.06051272]
[1745537061192,1.26885938,601.67,599.66,0.30595025]
[1745537061591,0.28984179,601.66,599.66,0.30595025]
[1745537062194,1.26885938,601.65,599.66,0.30595025]
[1745537062588,1.26885938,601.65,599.65,1.06051272]
[1745537062889,1.26885938,601.65,599.66,0.30594947]
[1745537064393,1.26885938,601.65,599.67,0.30594947]
[1745537064589,1.26885938,601.65,599.66,0.30594947]
[1745537064894,0.28984179,601.64,599.67,0.30594947]
[1745537065196,0.28984179,601.64,599.68,0.30594947]
[1745537065394,0.28984179,601.64,599.63,0.28984179]
[1745537065395,1.26885938,601.46,599.76,1.06051272]
[1745537065595,1.26885938,601.46,599.77,0.30594947]
[1745537066793,0.28985145,601.45,599.77,0.30594947]
[1745537067598,1.26885938,601.36,599.83,1.06051272]
[1745537067798,1.26885938,601.36,599.84,0.30594947]
[1745537070704,0.28983335,601.35,599.84,0.30594947]
[1745537071303,1.26885938,601.29,599.87,1.06051272]
[1745537071503,1.26885938,601.29,599.88,0.30594947]
[1745537072404,1.26885938,601.29,599.87,1.06051272]
[1745537072604,1.26885938,601.29,599.88,0.30590693]
[1745537072807,1.26885938,601.29,599.87,1.06051272]
[1745537073001,1.26885938,601.29,599.88,0.3059067]
[1745537074805,0.28983697,601.3,599.88,0.3059067]
[1745537075005,0.28983697,601.3,599.75,0.3059067]
[1745537075206,0.28983697,601.3,599.76,0.3059067]
[1745537075404,1.26885938,601.76,599.75,0.3059067]
[1745537075601,1.26885938,601.76,599.76,0.3059067]
[1745537075805,1.26885938,601.76,599.74,1.06051272]
[1745537075806,1.26885938,601.76,599.75,0.3059067]
[1745537076005,1.26885938,601.76,599.76,0.3059067]
[1745537076205,1.26885938,601.76,599.77,0.3059067]
[1745537076405,1.26885938,601.76,599.75,0.3059067]
[1745537076706,0.28979594,601.75,599.76,0.3059067]
[1745537076905,0.28979594,601.75,599.75,0.3059067]
[1745537077103,0.28979594,601.75,599.76,0.3059067]
[1745537077407,0.28979594,601.75,599.77,0.3059085]
[1745537077408,1.55865532,601.75,599.77,0.3059085]
[1745537077607,1.55865532,601.75,599.74,0.3059085]
[1745537077907,1.55865532,601.75,599.75,0.3059085]
[1745537078106,1.55865532,601.75,599.74,0.3059085]
[1745537078303,1.55865532,601.75,599.75,0.3059085]
[1745537078501,1.26885938,601.75,599.74,0.3059085]
[1745537078703,1.26885938,601.75,599.75,0.3059085]
[1745537078902,1.26885938,601.75,599.74,0.3059085]
[1745537079609,0.28978628,601.74,599.74,0.3059085]
[1745537081409,1.26885938,601.77,599.74,0.3059085]
[1745537081607,1.26885938,601.77,599.73,0.3059085]
[1745537082610,0.28978508,601.76,599.73,0.3059085]
[1745537082809,0.28978508,601.76,599.73,0.59569358]
[1745537083106,0.28978508,601.76,599.74,0.3059085]
[1745537083306,0.28978508,601.76,599.74,1.4349085]
[1745537083505,0.28978508,601.76,599.75,0.3059085]
[1745537084507,1.26885938,601.82,599.75,0.3059085]
[1745537084713,0.28977663,601.75,599.75,0.3059085]
[1745537086608,1.26885938,601.7,599.79,1.06051272]
[1745537086811,1.26885938,601.7,599.8,0.3059085]
[1745537087813,1.26885938,601.7,599.8,1.2259085]
[1745537088109,1.26885938,601.7,599.81,0.3059085]
[1745537088716,0.28978387,601.69,599.81,0.3059085]
[1745537089214,0.28978387,601.69,599.8,0.92]
[1745537089711,0.28978387,601.69,599.81,0.30592152]
[1745537090014,0.28978387,601.69,599.81,1.35992152]
[1745537090215,0.28978387,601.69,599.82,0.30592152]
[1745537090417,1.26885938,601.84,599.82,0.30592152]
[1745537090618,1.26885938,601.84,599.83,0.30589814]
[1745537090815,1.26885938,601.84,599.82,0.30589814]
[1745537091016,2.16082721,602.57,599.81,1.054]
[1745537091017,1.26885938,601.82,599.83,0.30589814]
[1745537091211,1.26885938,601.82,599.82,0.30589814]
[1745537091411,1.26885938,601.82,599.83,0.30589814]
[1745537091612,0.28976819,601.81,599.82,0.30589814]
[1745537091814,0.28976819,601.81,599.83,0.30589814]
[1745537092015,0.28976819,601.81,599.82,0.30589814]
[1745537092215,0.28976819,601.81,599.83,0.30589814]
[1745537092516,0.28976819,601.81,599.84,0.30589814]
[1745537092716,1.26885938,601.76,599.85,0.30589814]
[1745537092917,1.26885938,601.76,599.82,0.30589814]
[1745537094715,0.28977542,601.75,599.82,0.30589814]
[1745537095014,1.26885938,601.72,599.82,0.30589814]
[1745537095819,1.26885938,601.72,599.81,1.054]
[1745537096314,1.26885938,601.72,599.82,0.30590472]
[1745537096721,1.26885938,601.72,599.83,1.422]
[1745537096919,1.26885938,601.72,599.84,0.30590472]
[1745537097316,1.26885938,601.72,599.85,1.217]
[1745537097516,1.26885938,601.72,599.86,0.30590472]
[1745537097718,1.26885938,601.61,599.86,0.30590472]
[1745537099822,1.26885938,601.61,599.85,1.217]
[1745537100019,0.28977784,601.71,599.91,1.06051272]
[1745537100020,1.26885938,601.45,599.91,1.06051272]
[1745537100921,1.26885938,601.45,599.92,0.3058967]
[1745537101122,1.26885938,601.45,599.92,0.6117934]
[1745537101322,1.26885938,601.45,599.93,0.3058967]
[1745537102924,1.26885938,601.46,599.93,0.3058967]
[1745537103723,1.26885938,601.46,599.92,0.3058967]
[1745537103925,1.26885938,601.46,599.93,0.3058967]
[1745537104622,1.26885938,601.41,599.97,1.06051272]
[1745537104820,1.26885938,601.41,599.98,0.3058967]
[1745537106730,1.26885938,601.37,600.0,1.06051272]
[1745537106929,1.26885938,601.37,600.01,0.3058967]
[1745537107329,1.26885938,601.37,600.02,1.443]
[1745537107530,1.26885938,601.37,600.03,0.3058967]
[1745537107930,0.28979714,601.36,600.03,0.3058967]
[1745537108431,1.26885938,601.37,600.03,0.3058967]
[1745537108731,0.28979714,601.35,600.02,1.443]
[1745537108926,0.28979714,601.35,600.03,0.30589615]
[1745537110630,0.28979714,601.35,600.02,2.955]
[1745537111230,0.28979714,601.35,600.03,0.30592094]
[1745537111428,1.26885938,601.59,600.03,0.30592094]
[1745537112631,0.2897706,601.58,600.03,0.30592094]
[1745537114433,1.26885938,601.59,600.03,0.30592094]
[1745537115028,1.26885938,601.58,600.03,0.30592094]
[1745537115232,1.26885938,601.58,600.02,2.955]
[1745537115430,1.26885938,601.58,600.03,0.30589706]
[1745537115626,0.2897718,601.57,600.03,0.30589706]
[1745537117433,1.26885938,601.58,600.03,0.30589706]
[1745537117633,1.26885938,601.42,600.03,0.30589706]
[1745537118434,1.26885938,601.42,600.02,2.955]
[1745537118734,1.26885938,601.42,600.03,0.30589734]
[1745537120035,1.26885938,601.42,600.02,2.955]
[1745537120235,1.26885938,601.34,600.03,0.30589706]
[1745537121731,1.26885938,601.34,600.02,2.955]
[1745537121931,1.26885938,601.34,600.03,0.30589663]
[1745537123037,0.28980076,601.35,600.03,0.30589663]
[1745537123336,0.28980076,601.35,600.02,2.955]
[1745537123538,1.26885938,601.36,600.03,0.30589691]
[1745537124636,0.28979835,601.35,600.03,0.30589691]
[1745537127635,0.28979835,601.35,600.03,1.64189691]
[1745537127839,0.28979835,601.35,600.03,1.336]
[1745537129441,1.26885938,601.56,600.03,1.336]
[1745537130446,0.28981162,601.55,600.03,1.336]
[1745537132341,1.26885938,601.93,600.03,1.336]
[1745537133641,0.28976698,601.92,600.03,1.336]
[1745537134545,0.28976698,601.92,600.03,2.525]
[1745537134845,0.28976698,601.92,600.03,3.865]
[1745537135442,1.26885938,601.97,600.03,3.865]
[1745537136848,0.28976215,601.96,600.03,3.865]
[1745537137444,1.26885938,601.87,600.03,3.865]
[1745537137749,1.26885938,601.87,600.03,5.285]
[1745537139650,0.28977422,601.86,600.03,5.285]
[1745537140251,1.26885938,601.73,600.03,5.285]
[1745537142652,0.28979111,601.72,600.03,5.285]
[1745537142853,1.55865049,601.72,600.03,5.285]
[1745537144450,1.26885938,601.72,600.03,5.285]
[1745537144754,1.26885938,601.66,600.03,5.285]
[1745537145756,0.28979956,601.65,600.03,5.285]
[1745537147358,1.26885938,601.61,600.03,5.285]
[1745537150656,1.26885938,601.63,600.03,5.285]
[1745537151859,0.28980318,601.62,600.03,5.285]
[1745537153355,1.26885938,601.63,600.03,5.285]
[1745537153657,0.28980318,601.61,600.03,5.285]
[1745537156363,1.26885938,601.63,600.03,5.285]
[1745537156658,0.28979835,601.6,600.03,5.285]
[1745537159466,1.26885938,601.61,600.03,5.285]
[1745537159663,0.28979835,601.59,600.03,5.285]
[1745537160761,1.26885938,601.52,600.03,5.285]
[1745537163368,1.26885938,601.39,600.03,5.285]
[1745537165667,0.2898249,601.38,600.03,5.285]
[1745537171477,1.26885938,601.73,600.03,5.285]
[1745537171674,0.28977663,601.37,600.03,5.285]
[1745537171975,1.26885938,601.73,600.03,5.285]
[1745537172777,0.28977422,601.72,600.03,5.285]
[1745537173978,1.26885938,601.53,600.03,5.285]
[1745537174577,1.26885938,601.53,600.04,0.30590993]
[1745537175678,1.26885938,601.53,600.03,1.189]
[1745537177574,2.16082721,602.12,600.03,1.189]
[1745537177575,1.26885938,601.51,600.03,1.189]
[1745537177972,1.26885938,601.51,600.03,2.254]
[1745537178178,1.26885938,601.51,600.03,3.664]
[1745537178677,0.28978628,601.5,600.03,4.644]
[1745537180478,1.26885938,601.7,600.03,4.644]
[1745537180679,0.28975612,601.49,600.03,4.644]
[1745537180974,1.26885938,601.7,600.03,4.644]
[1745537181179,1.26885938,601.69,600.03,4.644]
[1745537181978,0.28975733,601.68,600.03,4.644]
[1745537183478,1.26885938,601.69,600.03,4.644]
[1745537183678,1.26885938,601.73,600.03,4.644]
[1745537184679,0.2897525,601.72,600.03,4.644]
[1745537185580,0.2897525,601.72,600.04,0.30590063]
[1745537186287,1.26885938,601.71,600.04,0.30590063]
[1745537187085,1.26885938,601.71,600.03,3.455]
[1745537187381,1.26885938,601.71,600.04,0.30589939]
[1745537187887,0.28974768,601.7,600.04,0.30589939]
[1745537188594,1.26885938,601.58,600.03,3.455]
[1745537189390,1.26885938,601.58,600.03,4.804]
[1745537190392,0.28974768,601.7,600.03,4.804]
[1745537192392,1.26885938,602.13,600.03,4.804]
[1745537192694,0.28968014,601.69,600.03,4.804]
[1745537192992,1.26885938,602.13,600.03,4.804]
[1745537193487,1.26885938,602.17,600.03,4.804]
[1745537193694,0.28968014,602.12,600.03,4.804]
[1745537195996,0.28968014,602.12,600.04,0.30584905]
[1745537196994,0.28968014,602.12,600.05,0.30584886]
[1745537197194,0.28968014,602.12,600.04,0.30584886]
[1745537197395,0.28968014,602.12,600.03,3.824]
[1745537197594,0.28968014,602.12,600.04,0.30584877]
[1745537198497,1.26885938,602.2,600.04,0.30584877]
[1745537198995,1.26885938,602.2,600.04,1.31884877]
[1745537199195,1.26885938,602.2,600.05,0.30584877]
[1745537199395,1.26885938,602.02,600.05,0.30584877]
[1745537202698,0.2896922,602.01,600.05,0.30584877]
[1745537203500,0.2896922,602.01,600.04,1.013]
[1745537203696,0.2896922,602.01,600.05,0.30584978]
[1745537203902,1.26885938,601.87,600.05,0.30584978]
[1745537205203,1.26885938,601.87,600.04,1.013]
[1745537205407,1.26885938,601.87,600.05,0.30585978]
[1745537205700,0.28971029,601.86,600.04,1.013]
[1745537205999,0.28971029,601.86,600.05,0.30585971]
[1745537206403,1.55856967,601.86,600.05,0.30585971]
[1745537206905,1.55856967,601.86,600.04,1.013]
[1745537207106,1.55856967,601.86,600.05,0.30585454]
[1745537207498,1.26885938,601.86,600.05,0.30585454]
[1745537207805,0.2897115,601.85,600.05,0.30585454]
[1745537209504,0.2897115,601.85,600.04,1.013]
[1745537210508,1.26885938,601.9,600.04,1.013]
[1745537211008,1.26885938,601.9,600.04,2.252]
[1745537211707,0.28970667,601.89,600.04,2.252]
[1745537213511,1.26885938,602.15,600.04,2.252]
[1745537214608,1.26885938,602.15,600.04,3.244]
[1745537214808,1.26885938,602.09,600.04,3.244]
[1745537217709,0.28970064,602.08,600.04,3.244]
[1745537218413,1.26885938,602.01,600.04,3.244]
[1745537219311,1.26885938,602.01,600.05,0.30586898]
[1745537221308,1.26885938,601.7,600.05,0.30586898]
[1745537222513,1.26885938,601.7,600.05,1.28586898]
[1745537222713,1.26885938,601.7,600.06,0.30586898]
[1745537222914,0.28974768,601.69,600.06,0.30586898]
[1745537223514,0.28974768,601.69,600.05,0.98]
[1745537223815,0.28974768,601.69,600.06,0.30586898]
[1745537224114,1.26885938,601.65,600.05,0.98]
[1745537226914,0.2897525,601.64,600.05,0.98]
[1745537228526,1.26885938,602.49,600.05,0.98]
[1745537229618,1.26885938,602.48,600.05,0.98]
[1745537229819,1.55851059,602.48,600.05,0.98]
[1745537231522,1.26885938,602.48,600.05,0.98]
[1745537232518,1.26885938,602.47,600.05,0.98]
[1745537232726,1.55850698,602.47,600.05,0.98]
[1745537234522,1.26885938,602.47,600.05,0.98]
[1745537235726,0.2896488,602.46,600.05,0.98]
[1745537236026,1.26885938,601.82,600.05,0.98]
[1745537237926,1.26885938,601.87,600.05,0.98]
[1745537238724,0.28972114,601.86,600.05,0.98]
[1745537239830,0.28972114,601.86,600.05,2.146]
[1745537240528,2.16082721,602.6,600.05,2.146]
[1745537240529,1.26885938,601.91,600.05,2.146]
[1745537241722,0.2897115,601.9,600.05,3.326]
[1745537243429,1.26885938,601.92,600.05,3.326]
[1745537244827,0.28970547,601.91,600.05,3.326]
[1745537246528,1.26885938,601.92,600.05,3.326]
[1745537247630,2.16082721,602.68,600.05,3.326]
[1745537247631,1.26885938,602.02,600.05,3.326]
[1745537247823,0.28969582,601.91,600.05,3.326]
[1745537248026,1.26885938,602.02,600.06,0.30582332]
[1745537248225,1.26885938,602.02,600.06,1.51782332]
[1745537248430,1.26885938,602.02,600.07,0.30582332]
[1745537248730,1.26885938,602.02,600.06,1.212]
[1745537248934,1.26885938,602.02,600.07,0.30582101]
[1745537249334,0.28968256,602.01,600.07,0.30582101]
[1745537250334,0.28968256,602.01,600.06,1.212]
[1745537250533,0.28968256,602.01,600.07,0.30582129]
[1745537250834,1.26885938,601.74,600.08,1.265]
[1745537251027,1.26885938,601.74,600.09,0.30582129]
[1745537253033,1.26885938,601.74,600.09,0.30582129]
[1745537253636,1.26885938,601.8,600.08,1.265]
[1745537253932,0.28971391,601.73,600.09,0.30582118]
[1745537255541,1.26885938,601.8,600.09,0.30582118]
[1745537255941,1.26885938,601.79,600.09,0.30582118]
[1745537256945,0.28970788,601.78,600.08,1.265]
[1745537257144,0.28970788,601.78,600.09,0.30581427]
[1745537258345,0.28970788,601.78,600.1,1.157]
[1745537258542,1.26885938,601.96,600.11,0.30581427]
[1745537258738,1.26885938,601.96,600.12,0.30581705]
[1745537258940,1.26885938,601.96,600.1,1.157]
[1745537259340,1.26885938,601.96,600.11,0.30581705]
[1745537259840,0.28968497,601.95,600.1,1.157]
[1745537260741,1.55854435,601.95,600.1,1.157]
[1745537261542,1.26885938,601.95,600.1,1.157]
[1745537262849,0.28966688,601.94,600.1,1.157]
[1745537264450,1.26885938,602.31,600.1,1.157]
[1745537265652,0.28961626,602.3,600.11,0.30575165]
[1745537267451,1.26885938,602.43,600.11,0.30575165]
[1745537268746,0.28959698,602.42,600.11,0.30575165]
[1745537270158,0.28959698,602.42,600.1,1.157]
[1745537270351,0.28959698,602.42,600.11,0.30574673]
[1745537270556,1.26885938,602.44,600.11,0.30574673]
[1745537271556,0.28959577,602.43,600.11,0.30574673]
[1745537272759,1.55845515,602.43,600.11,0.30574673]
[1745537273660,1.26885938,602.43,600.11,0.30574673]
[1745537274755,0.28959698,602.42,600.11,0.30574673]
[1745537275659,0.28959698,602.42,600.12,1.284]
[1745537275859,0.28959698,602.42,600.13,0.30574673]
[1745537276459,1.26885938,602.43,600.13,0.30574673]
[1745537276660,1.26885938,602.43,600.12,1.284]
[1745537276855,0.2895777,602.41,600.12,1.284]
[1745537278258,0.2895777,602.41,600.13,0.976]
[1745537279463,1.26885938,602.7,600.13,0.976]
[1745537280765,0.28954397,602.69,600.13,0.976]
[1745537285467,1.26885938,603.1,600.13,0.976]
[1745537285763,0.28947894,602.68,600.13,0.976]
[1745537285965,1.26885938,603.1,600.13,0.976]
[1745537286165,1.26885938,603.13,600.13,0.976]
[1745537286464,1.26885938,603.13,600.14,0.30566167]
[1745537286867,0.28947533,603.12,600.14,0.30566167]
[1745537287867,1.26885938,602.66,600.14,0.30566167]
[1745537289767,0.28953192,602.65,600.14,0.30566167]
[1745537290465,0.28953192,602.65,600.13,0.30566167]
[1745537290765,1.5583913,602.65,600.13,0.30566167]
[1745537291071,1.5583913,602.65,600.12,1.57353192]
[1745537291371,1.5583913,602.65,600.13,0.30565791]
[1745537293573,1.5583913,602.65,600.14,1.27]
[1745537293871,1.5583913,602.65,600.15,0.30565791]
[1745537293872,1.26885938,602.38,600.15,0.30565791]
[1745537295774,0.28956445,602.37,600.15,0.30565791]
[1745537296172,0.28956445,602.37,600.16,0.30565791]
[1745537296372,0.28956445,602.37,600.17,0.30565791]
[1745537296573,0.28956445,602.37,600.14,1.27]
[1745537296574,1.26885938,602.27,600.15,0.30565791]
[1745537296875,1.26885938,602.27,600.16,0.30565791]
[1745537297067,1.26885938,602.27,600.14,1.27]
[1745537297068,1.26885938,602.27,600.17,0.30565791]
[1745537297270,1.26885938,602.27,600.15,0.30565791]
[1745537297774,0.28957047,602.26,600.15,0.30565791]
[1745537299474,0.28957047,602.26,600.15,1.37565791]
[1745537299677,0.28957047,602.26,600.16,0.30565791]
[1745537300473,1.26885938,602.76,600.16,0.30565791]
[1745537301278,0.28945245,602.75,600.16,0.30565791]
[1745537303578,1.26885938,602.89,600.16,0.30565791]
[1745537303975,1.26885938,602.89,600.15,1.07]
[1745537304178,1.26885938,602.89,600.16,0.30556968]
[1745537304677,0.28942718,602.88,600.16,0.30556968]
[1745537305382,1.26885938,602.75,600.16,0.30556968]
[1745537305583,1.26885938,602.75,600.15,2.4199399]
[1745537305783,1.26885938,602.75,600.16,0.3055686]
[1745537306482,1.26885938,602.75,600.16,1.7015686]
[1745537306682,1.26885938,602.75,600.17,0.3055686]
[1745537307183,1.26885938,602.75,600.16,1.396]
[1745537307483,1.26885938,602.75,600.17,1.36608306]
[1745537307678,1.26885938,602.75,600.18,0.30557034]
[1745537309786,1.26885938,602.82,600.18,0.30557034]
[1745537309983,0.28944643,602.74,600.17,0.30557034]
[1745537310180,1.26885938,602.82,600.18,0.30557034]
[1745537310485,1.26885938,602.82,600.19,0.30557034]
[1745537310686,1.26885938,602.82,600.2,0.30557034]
[1745537310882,0.28943921,602.81,600.17,0.30557034]
[1745537311185,0.28943921,602.81,600.18,0.30557034]
[1745537311385,0.28943921,602.81,600.17,0.30557034]
[1745537311885,0.28943921,602.81,600.17,1.33757034]
[1745537312087,0.28943921,602.81,600.18,0.30556553]
[1745537312486,1.26885938,603.15,600.18,0.30556553]
[1745537313688,0.28939829,603.14,600.19,0.30556329]
[1745537313889,0.28939829,603.14,600.18,0.30556329]
[1745537314088,0.28939829,603.14,600.19,0.30556329]
[1745537314289,0.28939829,603.14,600.18,0.30556329]
[1745537314491,0.28939829,603.14,600.2,0.30556329]
[1745537314790,0.28939829,603.14,600.17,1.32139829]
[1745537314791,0.28939829,603.14,600.21,0.30556329]
[1745537314985,0.28939829,603.14,600.18,0.30556329]
[1745537315190,0.28939829,603.14,600.22,0.30556329]
[1745537315385,0.28939829,603.14,600.23,0.30556329]
[1745537315587,1.26885938,603.15,600.18,0.30556329]
[1745537316891,0.28939829,603.14,600.18,0.30556329]
[1745537317293,0.28939829,603.14,600.18,1.59356329]
[1745537317494,1.26885938,603.12,600.19,0.30556329]
[1745537318394,1.26885938,603.12,600.18,1.288]
[1745537318694,1.26885938,603.12,600.19,0.30555965]
[1745537319797,0.2894007,603.11,600.19,0.30555965]
[1745537320499,1.26885938,603.08,600.19,0.30555965]
[1745537321592,1.26885938,603.08,600.2,0.30555045]
[1745537321792,1.26885938,603.08,600.21,0.30555045]
[1745537321993,1.26885938,603.08,600.22,0.30555045]
[1745537322196,1.26885938,603.08,600.19,0.30555045]
[1745537322397,1.26885938,603.08,600.2,0.30555045]
[1745537322597,1.26885938,603.08,600.18,1.5774007]
[1745537322598,1.26885938,603.08,600.19,0.30555045]
[1745537322793,1.26885938,603.08,600.2,0.30555045]
[1745537322996,1.26885938,603.08,600.21,0.30555045]
[1745537323198,1.26885938,603.08,600.19,0.30555045]
[1745537323498,1.26885938,603.08,600.2,0.30555045]
[1745537323699,1.26885938,602.69,600.25,1.06051272]
[1745537323894,1.26885938,602.69,600.26,0.30554614]
[1745537324700,1.26885938,602.69,600.25,1.06051272]
[1745537324895,1.26885938,602.69,600.26,0.30554646]
[1745537327402,1.26885938,602.61,600.33,0.30554726]
[1745537328802,1.26885938,602.69,600.33,0.30554726]
[1745537329002,1.26885938,602.69,600.31,0.30554726]
[1745537329203,1.26885938,602.69,600.32,0.30554726]
[1745537329404,1.26885938,602.69,600.31,0.30554726]
[1745537329606,1.26885938,602.69,600.32,0.30554726]
[1745537329805,1.26885938,602.69,600.31,0.30554726]
[1745537330003,1.26885938,602.69,600.32,0.30554726]
[1745537330200,0.28942597,602.68,600.33,0.30554726]
[1745537330504,1.26885938,602.7,600.33,0.30554726]
[1745537331906,0.28941755,602.69,600.33,0.30554726]
[1745537332508,1.26885938,602.64,600.36,1.06051272]
[1745537332706,1.26885938,602.64,600.37,0.30554726]
[1745537334304,1.26885938,602.64,600.36,1.06051272]
[1745537334506,1.26885938,602.64,600.37,0.30555139]
[1745537334703,0.28942958,602.63,600.37,0.30555139]
[1745537334902,1.26885938,602.51,600.43,1.06051272]
[1745537335104,1.26885938,602.51,600.44,0.30555139]
[1745537335809,1.26885938,602.51,600.43,1.06051272]
[1745537336409,1.26885938,602.51,600.44,0.30553506]
[1745537337105,1.26885938,602.83,600.45,1.54]
[1745537337310,1.26885938,602.83,600.46,0.30553506]
[1745537337710,0.28939589,602.82,600.46,0.30553506]
[1745537339506,1.26885938,602.81,600.46,0.30553506]
[1745537340611,1.26885938,602.81,600.45,1.54]
[1745537340806,0.28939107,602.8,600.46,0.30550688]
[1745537342514,1.26885938,603.02,600.46,0.30550688]
[1745537342814,0.2893634,602.79,600.46,0.30550688]
[1745537343015,1.26885938,603.02,600.46,0.30550688]
[1745537343415,1.26885938,603.02,600.45,1.54]
[1745537343617,1.26885938,603.02,600.46,0.30550101]
[1745537343816,0.2893634,603.01,600.46,0.30550101]
[1745537344115,0.2893634,603.01,600.45,1.54]
[1745537344616,1.26885938,602.84,600.45,1.54]
[1745537344816,1.26885938,602.84,600.46,0.3055016]
[1745537345912,1.26885938,602.84,600.47,0.30550379]
[1745537346112,1.26885938,602.84,600.48,0.30550379]
[1745537346313,1.26885938,602.81,600.46,0.30550379]
[1745537346514,1.26885938,602.81,600.47,0.30550379]
[1745537346716,1.26885938,602.81,600.46,0.30550379]
[1745537346917,0.28938867,602.8,600.47,0.30550379]
[1745537347117,0.28938867,602.8,600.46,0.30550379]
[1745537347318,0.28938867,602.8,600.47,0.30550379]
[1745537347614,0.28938867,602.8,600.48,0.30550379]
[1745537347819,0.28938867,602.8,600.46,0.30550379]
[1745537348020,0.28938867,602.8,600.47,0.30550379]
[1745537348219,0.28938867,602.8,600.46,0.30550379]
[1745537348420,0.28938867,602.8,600.47,0.30550379]
[1745537348620,1.26885938,602.81,600.46,0.30550379]
[1745537348814,1.26885938,602.81,600.47,0.30550379]
[1745537349014,1.26885938,602.81,600.46,0.30550379]
[1745537349214,1.26885938,602.81,600.47,0.30550379]
[1745537349420,1.26885938,602.72,600.48,0.30550379]
[1745537349621,1.26885938,602.72,600.49,0.30550379]
[1745537349818,0.2893995,602.71,600.5,0.30550379]
[1745537350016,0.2893995,602.71,600.51,0.30550379]
[1745537350220,0.2893995,602.71,600.52,0.30550379]
[1745537350418,0.2893995,602.71,600.47,0.30550379]
[1745537350621,0.2893995,602.71,600.52,1.268]
[1745537350919,0.2893995,602.71,600.53,0.30550881]
[1745537351522,1.26885938,602.72,600.53,0.30550881]
[1745537352523,1.26885938,602.38,600.58,1.06051272]
[1745537352723,1.26885938,602.38,600.59,0.30550881]
[1745537353326,1.26885938,602.38,600.6,1.379]
[1745537353626,1.26885938,602.38,600.61,0.30550881]
[1745537354726,1.26885938,602.41,600.61,0.30550881]
[1745537355526,1.26885938,602.41,600.62,0.30551563]
[1745537355821,1.26885938,602.41,600.63,0.30551563]
[1745537356023,1.26885938,602.41,600.64,0.30551563]
[1745537356223,1.26885938,602.41,600.65,0.30551563]
[1745537356428,1.26885938,602.41,600.66,0.30551563]
[1745537356629,1.26885938,602.41,600.61,0.30551563]
[1745537356827,1.26885938,602.41,600.66,1.067]
[1745537357031,1.26885938,602.41,600.67,0.30551857]
[1745537357825,0.28941153,602.4,600.67,0.30551857]
[1745537360031,0.28941153,602.4,600.66,1.067]
[1745537360232,0.28941153,602.4,600.67,0.30553471]
[1745537360532,1.26885938,602.54,600.66,1.067]
[1745537360935,0.28940792,602.39,600.66,1.067]
[1745537361132,1.26885938,602.54,600.66,1.067]
[1745537361334,1.26885938,602.54,600.67,0.3055352]
[1745537361935,0.28940551,602.53,600.67,0.3055352]
[1745537362835,1.26885938,602.47,600.67,0.3055352]
[1745537363135,1.26885938,602.47,600.66,1.067]